{"text_format":"3","workbook":"xlsx","n_sheets":7,"sheets":["Pondelok","Utorok","Streda","Štvrtok","Piatok","Sobota","Nedeľa"],"not_rendered":{"defined_names":21},"read":"whole","date_system":"1900"}

{"sheet":"Pondelok","index":0,"n_rows":10,"n_cols":13,"rows_kept":10,"merged":[[0,1,0,4],[1,2,1,4],[2,2,2,4]]}
[null,"Rozvrh pracovných zmien"]
[null,"Na týždeň: ","Dátum"]
[null,"Názov oddelenia: ","Meno"]
[]
[null,"PONDELOK","7:00","8:00","9:00","10:00","11:00","12:00","13:00","14:00","15:00","PN?","SPOLU"]
[null,"Meno 1","manažér","manažér","manažér","manažér","manažér","manažér","manažér","manažér","manažér",null,{"$f":"COUNTIF(Pondelok[[#This Row],[7:00]:[15:00]],\"*\")","v":9}]
[null,"Meno 2",null,"pokladňa","pokladňa","pokladňa","pokladňa",{"$nulls":5},{"$f":"COUNTIF(Pondelok[[#This Row],[7:00]:[15:00]],\"*\")","v":4}]
[null,"Meno 3",null,"recepcia","recepcia","recepcia","recepcia ","recepcia","recepcia","recepcia",null,null,{"$f":"COUNTIF(Pondelok[[#This Row],[7:00]:[15:00]],\"*\")","v":7}]
[null,"Meno 4",null,"recepcia","recepcia","recepcia","recepcia ","recepcia","recepcia","recepcia",null,null,{"$f":"COUNTIF(Pondelok[[#This Row],[7:00]:[15:00]],\"*\")","v":7}]
[null,"Meno 5",{"$nulls":9},"PN",{"$f":"COUNTIF(Pondelok[[#This Row],[7:00]:[15:00]],\"*\")","v":0}]

{"sheet":"Utorok","index":1,"n_rows":10,"n_cols":13,"rows_kept":10,"merged":[[0,1,0,4],[1,2,1,4],[2,2,2,4]]}
[null,"Rozvrh pracovných zmien"]
[null,"Na týždeň: ",{"$f":"Pondelok!C2","v":"Dátum"}]
[null,"Názov oddelenia: ",{"$f":"Pondelok!C3","v":"Meno"}]
[]
[null,"UTOROK","7:00","8:00","9:00","10:00","11:00","12:00","13:00","14:00","15:00","PN?","SPOLU"]
[null,"Meno 1","manažér","manažér","manažér","manažér","manažér","manažér","manažér","manažér","manažér",null,{"$f":"COUNTIF(Utorok[[#This Row],[7:00]:[15:00]],\"*\")","v":9}]
[null,"Meno 2",null,"pokladňa","pokladňa","pokladňa","pokladňa",{"$nulls":5},{"$f":"COUNTIF(Utorok[[#This Row],[7:00]:[15:00]],\"*\")","v":4}]
[null,"Meno 3",null,"recepcia","recepcia","recepcia","recepcia ","recepcia","recepcia","recepcia",null,null,{"$f":"COUNTIF(Utorok[[#This Row],[7:00]:[15:00]],\"*\")","v":7}]
[null,"Meno 4",null,"recepcia","recepcia","recepcia","recepcia ","recepcia","recepcia","recepcia",null,null,{"$f":"COUNTIF(Utorok[[#This Row],[7:00]:[15:00]],\"*\")","v":7}]
[null,"Meno 5",{"$nulls":9},"PN",{"$f":"COUNTIF(Utorok[[#This Row],[7:00]:[15:00]],\"*\")","v":0}]

{"sheet":"Streda","index":2,"n_rows":10,"n_cols":13,"rows_kept":10,"merged":[[0,1,0,4],[1,2,1,4],[2,2,2,4]]}
[null,"Rozvrh pracovných zmien"]
[null,"Na týždeň: ",{"$f":"Pondelok!C2","v":"Dátum"}]
[null,"Názov oddelenia: ",{"$f":"Pondelok!C3","v":"Meno"}]
[]
[null,"STREDA","7:00","8:00","9:00","10:00","11:00","12:00","13:00","14:00","15:00","PN?","SPOLU"]
[null,"Meno 1","manažér","manažér","manažér","manažér","manažér","manažér","manažér","manažér","manažér",null,{"$f":"COUNTIF(Streda[[#This Row],[7:00]:[15:00]],\"*\")","v":9}]
[null,"Meno 2",null,"pokladňa","pokladňa","pokladňa","pokladňa",{"$nulls":5},{"$f":"COUNTIF(Streda[[#This Row],[7:00]:[15:00]],\"*\")","v":4}]
[null,"Meno 3",null,"recepcia","recepcia","recepcia","recepcia ","recepcia","recepcia","recepcia",null,null,{"$f":"COUNTIF(Streda[[#This Row],[7:00]:[15:00]],\"*\")","v":7}]
[null,"Meno 4",null,"recepcia","recepcia","recepcia","recepcia ","recepcia","recepcia","recepcia",null,null,{"$f":"COUNTIF(Streda[[#This Row],[7:00]:[15:00]],\"*\")","v":7}]
[null,"Meno 5",{"$nulls":9},"PN",{"$f":"COUNTIF(Streda[[#This Row],[7:00]:[15:00]],\"*\")","v":0}]

{"sheet":"Štvrtok","index":3,"n_rows":10,"n_cols":13,"rows_kept":10,"merged":[[0,1,0,4],[1,2,1,4],[2,2,2,4]]}
[null,"Rozvrh pracovných zmien"]
[null,"Na týždeň: ",{"$f":"Pondelok!C2","v":"Dátum"}]
[null,"Názov oddelenia: ",{"$f":"Pondelok!C3","v":"Meno"}]
[]
[null,"ŠTVRTOK","7:00","8:00","9:00","10:00","11:00","12:00","13:00","14:00","15:00","PN?","SPOLU"]
[null,"Meno 1","manažér","manažér","manažér","manažér","manažér","manažér","manažér","manažér","manažér",null,{"$f":"COUNTIF(Stvrtok[[#This Row],[7:00]:[15:00]],\"*\")","v":9}]
[null,"Meno 2",null,"pokladňa","pokladňa","pokladňa","pokladňa",{"$nulls":5},{"$f":"COUNTIF(Stvrtok[[#This Row],[7:00]:[15:00]],\"*\")","v":4}]
[null,"Meno 3",null,"recepcia","recepcia","recepcia","recepcia ","recepcia","recepcia","recepcia",null,null,{"$f":"COUNTIF(Stvrtok[[#This Row],[7:00]:[15:00]],\"*\")","v":7}]
[null,"Meno 4",null,"recepcia","recepcia","recepcia","recepcia ","recepcia","recepcia","recepcia",null,null,{"$f":"COUNTIF(Stvrtok[[#This Row],[7:00]:[15:00]],\"*\")","v":7}]
[null,"Meno 5",{"$nulls":9},"PN",{"$f":"COUNTIF(Stvrtok[[#This Row],[7:00]:[15:00]],\"*\")","v":0}]

{"sheet":"Piatok","index":4,"n_rows":10,"n_cols":13,"rows_kept":10,"merged":[[0,1,0,4],[1,2,1,4],[2,2,2,4]]}
[null,"Rozvrh pracovných zmien"]
[null,"Na týždeň: ",{"$f":"Pondelok!C2","v":"Dátum"}]
[null,"Názov oddelenia: ",{"$f":"Pondelok!C3","v":"Meno"}]
[]
[null,"PIATOK","7:00","8:00","9:00","10:00","11:00","12:00","13:00","14:00","15:00","PN?","SPOLU"]
[null,"Meno 1","manažér","manažér","manažér","manažér","manažér","manažér","manažér","manažér","manažér",null,{"$f":"COUNTIF(Piatok[[#This Row],[7:00]:[15:00]],\"*\")","v":9}]
[null,"Meno 2",null,"pokladňa","pokladňa","pokladňa","pokladňa",{"$nulls":5},{"$f":"COUNTIF(Piatok[[#This Row],[7:00]:[15:00]],\"*\")","v":4}]
[null,"Meno 3",null,"recepcia","recepcia","recepcia","recepcia ","recepcia","recepcia","recepcia",null,null,{"$f":"COUNTIF(Piatok[[#This Row],[7:00]:[15:00]],\"*\")","v":7}]
[null,"Meno 4",null,"recepcia","recepcia","recepcia","recepcia ","recepcia","recepcia","recepcia",null,null,{"$f":"COUNTIF(Piatok[[#This Row],[7:00]:[15:00]],\"*\")","v":7}]
[null,"Meno 5",{"$nulls":9},"PN",{"$f":"COUNTIF(Piatok[[#This Row],[7:00]:[15:00]],\"*\")","v":0}]

{"sheet":"Sobota","index":5,"n_rows":10,"n_cols":13,"rows_kept":10,"merged":[[0,1,0,4],[1,2,1,4],[2,2,2,4]]}
[null,"Rozvrh pracovných zmien"]
[null,"Na týždeň: ",{"$f":"Pondelok!C2","v":"Dátum"}]
[null,"Názov oddelenia: ",{"$f":"Pondelok!C3","v":"Meno"}]
[]
[null,"SOBOTA","7:00","8:00","9:00","10:00","11:00","12:00","13:00","14:00","15:00","PN?","SPOLU"]
[null,"Meno 1","manažér","manažér","manažér","manažér","manažér","manažér","manažér","manažér","manažér",null,{"$f":"COUNTIF(Sobota[[#This Row],[7:00]:[15:00]],\"*\")","v":9}]
[null,"Meno 2",null,"pokladňa","pokladňa","pokladňa","pokladňa",{"$nulls":5},{"$f":"COUNTIF(Sobota[[#This Row],[7:00]:[15:00]],\"*\")","v":4}]
[null,"Meno 3",null,"recepcia","recepcia","recepcia","recepcia ","recepcia","recepcia","recepcia",null,null,{"$f":"COUNTIF(Sobota[[#This Row],[7:00]:[15:00]],\"*\")","v":7}]
[null,"Meno 4",null,"recepcia","recepcia","recepcia","recepcia ","recepcia","recepcia","recepcia",null,null,{"$f":"COUNTIF(Sobota[[#This Row],[7:00]:[15:00]],\"*\")","v":7}]
[null,"Meno 5",{"$nulls":9},"PN",{"$f":"COUNTIF(Sobota[[#This Row],[7:00]:[15:00]],\"*\")","v":0}]

{"sheet":"Nedeľa","index":6,"n_rows":10,"n_cols":13,"rows_kept":10,"merged":[[0,1,0,4],[1,2,1,4],[2,2,2,4]]}
[null,"Rozvrh pracovných zmien"]
[null,"Na týždeň: ",{"$f":"Pondelok!C2","v":"Dátum"}]
[null,"Názov oddelenia: ",{"$f":"Pondelok!C3","v":"Meno"}]
[]
[null,"NEDEĽA","7:00","8:00","9:00","10:00","11:00","12:00","13:00","14:00","15:00","PN?","SPOLU"]
[null,"Meno 1","manažér","manažér","manažér","manažér","manažér","manažér","manažér","manažér","manažér",null,{"$f":"COUNTIF(Nedela[[#This Row],[7:00]:[15:00]],\"*\")","v":9}]
[null,"Meno 2",null,"pokladňa","pokladňa","pokladňa","pokladňa",{"$nulls":5},{"$f":"COUNTIF(Nedela[[#This Row],[7:00]:[15:00]],\"*\")","v":4}]
[null,"Meno 3",null,"recepcia","recepcia","recepcia","recepcia ","recepcia","recepcia","recepcia",null,null,{"$f":"COUNTIF(Nedela[[#This Row],[7:00]:[15:00]],\"*\")","v":7}]
[null,"Meno 4",null,"recepcia","recepcia","recepcia","recepcia ","recepcia","recepcia","recepcia",null,null,{"$f":"COUNTIF(Nedela[[#This Row],[7:00]:[15:00]],\"*\")","v":7}]
[null,"Meno 5",{"$nulls":9},"PN",{"$f":"COUNTIF(Nedela[[#This Row],[7:00]:[15:00]],\"*\")","v":0}]